bitfinex/quotes_BTCUSD_20220201
["timestamp","ask_amount","ask_price","bid_price","bid_amount"]
[1643699270708,0.05,38365.0,38358.0,0.22239576]
[1643699270911,0.065185,38363.0,38359.0,0.21083395]
[1643699271115,0.20588373,38372.0,38358.0,0.22239576]
[1643699271310,0.22993994,38374.0,38360.0,0.00100268]
[1643699271508,0.350926,38373.0,38360.0,0.00100268]
[1643699271710,0.28358922,38371.0,38360.0,0.00100268]
[1643699271911,0.21924019,38372.0,38361.0,0.065176]
[1643699271912,0.130356,38368.0,38361.0,0.065176]
[1643699272312,0.130356,38368.0,38361.0,0.36627753]
[1643699272556,0.130356,38368.0,38362.0,0.21130701]
[1643699272955,0.130356,38368.0,38364.0,0.21116644]
[1643699273958,0.065172,38368.0,38364.0,0.21116644]
[1643699274161,0.28955671,38371.0,38364.0,0.21116644]
[1643699274758,0.28955671,38371.0,38365.0,0.20344397]
[1643699275160,0.35472471,38371.0,38365.0,0.20344397]
[1643699275359,0.35472471,38371.0,38365.0,0.26861197]
[1643699275762,0.35472471,38371.0,38365.0,0.065168]
[1643699276210,0.35472471,38371.0,38365.0,0.26075787]
[1643699276404,0.35472471,38371.0,38365.0,0.065168]
[1643699277406,0.065168,38371.0,38366.0,0.20138036]
[1643699277904,0.065168,38371.0,38365.0,0.065168]
[1643699278706,0.3902374,38369.0,38363.0,0.21050791]
[1643699278909,0.065178,38368.0,38363.0,0.2287331]
[1643699279605,0.065178,38368.0,38364.0,0.065172]
[1643699279809,0.065178,38368.0,38363.0,0.01822519]
[1643699280652,0.10174447,38366.0,38363.0,0.01822519]
[1643699280852,0.065178,38368.0,38363.0,0.01822519]
[1643699281455,0.065178,38368.0,38364.0,0.065171]
[1643699283053,0.057378,38368.0,38364.0,0.065171]
[1643699283552,0.05706418,38368.0,38364.0,0.065171]
[1643699284006,0.05706418,38368.0,38365.0,0.19730626]
[1643699284206,0.05706418,38368.0,38364.0,0.065171]
[1643699284805,0.03356434,38368.0,38364.0,0.065171]
[1643699285208,0.03356434,38368.0,38365.0,0.19736156]
[1643699285809,0.13034,38374.0,38365.0,0.19736156]
[1643699286307,0.05,38373.0,38367.0,0.27182492]
[1643699287108,0.115169,38373.0,38367.0,0.27182492]
[1643699287308,0.115169,38373.0,38365.0,0.22906821]
[1643699287751,0.065169,38373.0,38365.0,0.22906821]
[1643699288151,0.065169,38373.0,38365.0,0.02095096]
[1643699288553,0.24031024,38369.0,38365.0,0.02095096]
[1643699288953,0.065172,38368.0,38365.0,0.02095096]
[1643699289756,0.065172,38368.0,38364.0,0.19791715]
[1643699290458,0.065172,38368.0,38364.0,0.26308715]
[1643699291055,0.060172,38368.0,38364.0,0.26308715]
[1643699293705,0.060172,38368.0,38364.0,0.26682157]
[1643699294957,0.060172,38368.0,38364.0,0.06517]
[1643699296155,0.060172,38368.0,38364.0,0.26134956]
[1643699296357,0.060172,38368.0,38364.0,0.06517]
[1643699296556,0.060172,38368.0,38364.0,0.25862253]
[1643699296758,0.060172,38368.0,38364.0,0.06517]
[1643699296962,0.060172,38368.0,38364.0,0.26047556]
[1643699298358,0.060172,38368.0,38364.0,0.06517]
[1643699298559,0.060172,38368.0,38364.0,0.2606373]
[1643699300007,0.03323978,38368.0,38365.0,0.28058952]
[1643699300207,0.03323978,38368.0,38366.0,0.20613971]
[1643699300409,0.03323978,38368.0,38365.0,0.28058952]
[1643699301009,0.03323978,38368.0,38365.0,0.47872615]
[1643699302752,0.03323978,38368.0,38366.0,0.350926]
[1643699302953,0.03323978,38368.0,38367.0,0.19506052]
[1643699303356,0.130333,38375.0,38367.0,0.19506052]
[1643699303753,0.180333,38375.0,38367.0,0.19506052]
[1643699304155,0.180333,38375.0,38367.0,0.19666873]
[1643699304555,0.0521,38374.0,38367.0,0.19666873]
[1643699305255,0.065167,38371.0,38367.0,0.19666873]
[1643699308809,0.065167,38371.0,38366.0,0.13033479]
[1643699309411,0.065167,38371.0,38366.0,0.33010538]
[1643699309610,0.065167,38371.0,38366.0,0.32399168]
[1643699309957,0.065167,38371.0,38366.0,0.32396225]
[1643699311557,0.34380341,38374.0,38366.0,0.32396225]
[1643699312257,0.065166,38374.0,38369.0,0.23987023]
[1643699312456,0.065166,38374.0,38366.0,0.32396225]
[1643699313056,0.065166,38374.0,38368.0,0.01954161]
[1643699313259,0.065166,38374.0,38366.0,0.32396225]
[1643699313709,0.36106083,38374.0,38366.0,0.19362746]
[1643699314104,0.065166,38374.0,38366.0,0.19362746]
[1643699314307,0.065166,38374.0,38365.0,0.46821593]
[1643699314705,0.065166,38374.0,38365.0,0.53338461]
[1643699314904,0.065166,38374.0,38365.0,1.03338461]
[1643699315507,0.065166,38374.0,38366.0,0.02068844]
[1643699315806,0.065166,38374.0,38366.0,0.08585544]
[1643699316207,0.065166,38374.0,38367.0,0.191675]
[1643699317006,0.065166,38374.0,38367.0,0.2102598]
[1643699317859,0.065166,38374.0,38367.0,0.191675]
[1643699319257,0.065166,38374.0,38370.0,0.29016438]
[1643699320172,0.065166,38374.0,38367.0,0.191675]
[1643699320956,0.065166,38374.0,38367.0,0.21343111]
[1643699321216,0.06509664,38374.0,38369.0,0.284708]
[1643699321412,0.06509664,38374.0,38369.0,0.48322992]
[1643699322114,0.3293271,38378.0,38369.0,0.48182531]
[1643699322316,0.3293271,38378.0,38370.0,0.065161]
[1643699322317,0.001,38378.0,38370.0,0.065161]
[1643699322515,0.001,38378.0,38374.0,0.25379682]
[1643699323316,0.3283271,38384.0,38374.0,0.31894982]
[1643699323518,0.018,38385.0,38375.0,0.21760306]
[1643699323716,0.018,38385.0,38374.0,0.31894982]
[1643699324116,0.130306,38383.0,38374.0,0.53655288]
[1643699324315,0.083151,38385.0,38377.0,0.31118641]
[1643699324516,0.018,38385.0,38377.0,0.065149]
[1643699325359,0.08305522,38384.0,38377.0,0.065149]
[1643699325564,0.0012246,38382.0,38377.0,0.065149]
[1643699325763,0.0012246,38382.0,38377.0,0.565149]
[1643699326161,0.0663736,38382.0,38378.0,0.19587809]
[1643699326461,0.0663736,38382.0,38377.0,0.565149]
[1643699326660,0.0663736,38382.0,38377.0,0.5]
[1643699326859,0.0657836,38382.0,38377.0,0.5]
[1643699328262,0.05829706,38382.0,38378.0,0.19427267]
[1643699328463,0.24748421,38381.0,38377.0,0.5]
[1643699329713,0.05829706,38382.0,38377.0,0.5]
[1643699330717,0.28933583,38381.0,38377.0,0.5]
[1643699333660,0.01290333,38382.0,38377.0,0.5]
[1643699333859,0.01290333,38382.0,38378.0,0.19457521]
[1643699334261,0.07805233,38382.0,38377.0,0.5]
[1643699334460,0.07805233,38382.0,38378.0,0.19352165]
[1643699335060,0.07805233,38382.0,38377.0,0.5]
[1643699335660,0.0012826,38381.0,38377.0,0.5]
[1643699336907,0.21801572,38381.0,38377.0,0.5]
[1643699337111,0.26801572,38381.0,38377.0,0.5]
[1643699337311,0.403026,38380.0,38377.0,0.5]
[1643699337707,0.453026,38380.0,38377.0,0.5]
[1643699338108,0.38008915,38379.0,38377.0,0.5]
[1643699338310,0.28523353,38373.0,38371.0,0.5]
[1643699339515,0.25111559,38372.0,38371.0,0.5]
[1643699340365,2.52377984,38372.0,38371.0,0.5]
[1643699340965,2.67569025,38372.0,38371.0,0.5]
[1643699342365,0.065168,38371.0,38366.0,0.73108013]
[1643699342567,0.07372597,38369.0,38366.0,0.73108013]
[1643699342766,0.0521,38368.0,38366.0,0.73108013]
[1643699343169,0.0521,38368.0,38366.0,0.75252679]
[1643699343366,0.0521,38368.0,38366.0,0.73108013]
[1643699344211,0.117268,38368.0,38366.0,0.73108013]
[1643699345909,0.1182784,38368.0,38366.0,0.73108013]
[1643699352519,0.0531104,38368.0,38367.0,0.350926]
[1643699353017,0.0010104,38368.0,38367.0,0.350926]
[1643699353617,0.00094531,38368.0,38367.0,0.350926]
[1643699355767,0.0661829,38370.0,38367.0,0.350926]
[1643699355966,0.0661829,38370.0,38366.0,0.73108013]
[1643699358170,0.0661829,38370.0,38367.0,0.350926]
[1643699359013,0.0661829,38370.0,38366.0,0.73108013]
[1643699359912,0.0661829,38370.0,38367.0,0.350926]
[1643699360813,0.0661829,38370.0,38366.0,0.73108013]
[1643699361214,0.0661829,38370.0,38367.0,0.350926]
[1643699361614,0.0661829,38370.0,38366.0,0.73108013]
[1643699362115,0.0661829,38370.0,38366.0,0.5]
[1643699362318,2.10292098,38369.0,38366.0,0.5]
[1643699362759,2.10292098,38369.0,38364.0,0.29759514]
[1643699362959,0.0661829,38370.0,38364.0,0.29759514]
[1643699363359,0.0661829,38370.0,38363.0,0.177767]
[1643699363760,0.0661829,38370.0,38364.0,0.5]
[1643699365160,0.0661829,38370.0,38365.0,0.350926]
[1643699366914,0.0661829,38370.0,38364.0,0.5]
[1643699367714,0.0661829,38370.0,38364.0,0.51993739]
[1643699368514,0.0661829,38370.0,38364.0,0.5]
[1643699369115,0.0661829,38370.0,38365.0,0.19187856]
[1643699369963,0.0661829,38370.0,38366.0,0.350926]
[1643699370165,0.0661829,38370.0,38367.0,0.19134654]
[1643699370362,0.0661829,38370.0,38366.0,0.5]
[1643699373466,0.29218209,38369.0,38366.0,0.5]
[1643699373716,0.130342,38368.0,38366.0,0.5]
[1643699374517,0.13026064,38368.0,38366.0,0.5]
[1643699375618,0.13128176,38368.0,38366.0,0.5]
[1643699382013,0.13128176,38368.0,38363.0,0.1126]
[1643699382215,0.065171,38367.0,38363.0,0.19164986]
[1643699383119,0.065171,38367.0,38364.0,0.5]
[1643699386264,0.06487529,38367.0,38364.0,0.5]
[1643699386467,0.06487529,38367.0,38365.0,0.5499388]
[1643699386669,0.06487529,38367.0,38366.0,0.21673312]
[1643699386867,0.00102112,38368.0,38366.0,1.06765912]
[1643699387064,0.00102112,38368.0,38367.0,0.350926]
[1643699388367,0.00102112,38368.0,38367.0,0.56765912]
[1643699390722,0.09619624,38374.0,38368.0,0.06515105]
[1643699390920,0.09619624,38374.0,38370.0,0.32355599]
[1643699391119,0.06515,38375.0,38371.0,0.57723023]
[1643699391721,0.00101425,38376.0,38371.0,0.64238177]
[1643699392120,0.00101425,38376.0,38372.0,0.065152]
[1643699392320,0.00101425,38376.0,38373.0,0.55427854]
[1643699392564,0.00101425,38376.0,38373.0,0.81917897]
[1643699392965,0.00101425,38376.0,38373.0,0.91871897]
[1643699393165,0.00101425,38376.0,38374.0,0.06515]
[1643699393371,0.00101425,38376.0,38375.0,0.57172334]
[1643699395570,0.2445608,38382.0,38375.0,0.57172334]
[1643699395876,0.29848068,38385.0,38372.0,0.189953]
[1643699395877,0.31392843,38375.0,38372.0,0.189953]
[1643699396070,0.08198297,38376.0,38373.0,0.54243435]
[1643699396321,0.08198297,38376.0,38373.0,0.350926]
[1643699396522,0.08198297,38376.0,38372.0,0.25617029]
[1643699396721,0.08198297,38376.0,38373.0,0.350926]
[1643699396919,0.2961189,38381.0,38373.0,0.62038906]
[1643699397121,0.065153,38377.0,38373.0,0.46565566]
[1643699397329,0.065153,38377.0,38374.0,0.350926]
[1643699398121,0.09337997,38375.0,38374.0,0.350926]
[1643699398325,0.09337997,38375.0,38373.0,0.54766692]
[1643699398524,0.09337997,38375.0,38373.0,0.350926]
[1643699398821,0.09337997,38375.0,38374.0,0.19239597]
[1643699399122,0.09337997,38375.0,38374.0,0.54332197]
[1643699402076,0.065153,38377.0,38374.0,0.350926]
[1643699402276,0.065153,38377.0,38373.0,0.350926]
[1643699402675,0.065153,38377.0,38374.0,0.19464802]
[1643699402875,0.065153,38377.0,38375.0,0.350926]
[1643699404916,0.065153,38377.0,38375.0,0.54385576]
[1643699405118,0.065153,38377.0,38375.0,0.350926]
[1643699405319,0.065153,38377.0,38376.0,0.19471069]
[1643699405518,0.20642622,38378.0,38374.0,0.065149]
[1643699405719,0.20642622,38378.0,38375.0,0.350926]
[1643699405919,0.20642622,38378.0,38372.0,0.06515049]
[1643699406119,0.20642622,38378.0,38373.0,0.350926]
[1643699406324,0.20642622,38378.0,38372.0,0.13030349]
[1643699406522,0.20642622,38378.0,38373.0,0.55174413]
[1643699407965,0.20642622,38378.0,38374.0,0.065149]
[1643699408164,0.20642622,38378.0,38375.0,0.55768795]
[1643699408564,0.20642622,38378.0,38375.0,0.350926]
[1643699408970,0.20642622,38378.0,38373.0,0.350926]
[1643699409166,0.20642622,38378.0,38374.0,0.19129447]
[1643699409367,0.20642622,38378.0,38375.0,0.350926]
[1643699409566,0.20642622,38378.0,38371.0,0.3126405]
[1643699409865,0.20642622,38378.0,38372.0,0.36896714]
[1643699410067,0.20642622,38378.0,38373.0,0.1929722]
[1643699410265,0.20642622,38378.0,38374.0,0.350926]
[1643699410468,0.20642622,38378.0,38373.0,0.19199046]
[1643699410670,0.130304,38378.0,38374.0,0.350926]
[1643699410872,0.130304,38378.0,38375.0,0.21673312]
[1643699411070,0.06515,38379.0,38376.0,0.350926]
[1643699411520,0.06515,38379.0,38373.0,0.350926]
[1643699411720,0.06515,38379.0,38378.0,0.26404089]
[1643699411917,0.14654168,38379.0,38378.0,0.26404089]
[1643699412719,0.14654168,38379.0,38372.0,0.34702412]
[1643699412919,0.14654168,38379.0,38373.0,0.350926]
[1643699412920,0.08094168,38379.0,38373.0,0.350926]
[1643699413120,0.130291,38382.0,38374.0,0.23502357]
[1643699413321,0.12959661,38382.0,38375.0,0.350926]
[1643699413523,0.12959661,38382.0,38376.0,0.27045797]
[1643699413721,0.12959661,38382.0,38377.0,0.66537522]
[1643699414023,0.12959661,38382.0,38378.0,0.19467526]
[1643699414220,0.09364977,38381.0,38378.0,0.19467526]
[1643699414423,0.09364977,38381.0,38379.0,0.350926]
[1643699414623,0.09364977,38381.0,38380.0,0.19290963]
[1643699414822,0.09364977,38381.0,38377.0,0.31444922]
[1643699415065,0.22394477,38381.0,38378.0,0.350926]
[1643699415666,0.22394477,38381.0,38378.0,0.54318129]
[1643699415867,0.22394477,38381.0,38378.0,0.54133367]
[1643699416067,0.22394477,38381.0,38378.0,0.350926]
[1643699416266,0.22394477,38381.0,38378.0,0.19349746]
[1643699416468,0.15879477,38381.0,38377.0,0.31444922]
[1643699416866,0.15879477,38381.0,38377.0,0.50691752]
[1643699417468,0.15879477,38381.0,38377.0,0.31444922]
[1643699417769,0.15879477,38381.0,38374.0,0.065149]
[1643699418166,0.15879477,38381.0,38374.0,0.25676177]
[1643699418367,0.15879477,38381.0,38374.0,0.065149]
[1643699418570,0.15879477,38381.0,38372.0,0.5]
[1643699418571,2.44996211,38377.0,38372.0,0.5]
[1643699418831,0.10412311,38375.0,38372.0,0.5]
[1643699419028,0.61932804,38374.0,38372.0,0.5]
[1643699419231,0.403026,38374.0,38372.0,0.5]
[1643699419427,0.0521,38374.0,38371.0,0.29313447]
[1643699419628,0.065167,38373.0,38365.0,0.6861]
[1643699419830,0.08824498,38367.0,38365.0,0.6861]
[1643699420029,0.15341498,38367.0,38364.0,0.2990751]
[1643699421029,0.06517,38367.0,38364.0,0.2990751]
[1643699421231,0.06517,38367.0,38365.0,0.350926]
[1643699421428,0.06517,38367.0,38364.0,0.3642401]
[1643699422464,0.06517,38367.0,38364.0,0.2990751]
[1643699422863,0.09893302,38366.0,38364.0,0.2990751]
[1643699423063,0.09893302,38366.0,38365.0,0.44239481]
[1643699423266,0.06517,38367.0,38365.0,0.44206409]
[1643699423466,0.06517,38367.0,38365.0,0.350926]
[1643699424164,0.06517,38367.0,38364.0,0.2990751]
[1643699424663,0.09965166,38366.0,38364.0,0.2990751]
[1643699427914,0.06517,38367.0,38364.0,0.2990751]
[1643699428317,0.06517,38367.0,38365.0,0.416091]
[1643699430167,0.06517,38367.0,38364.0,0.2990751]
[1643699430769,0.06517,38367.0,38365.0,0.54787491]
[1643699430967,0.06517,38367.0,38365.0,0.350926]
[1643699431968,0.07365942,38366.0,38365.0,0.350926]
[1643699432369,0.07365942,38366.0,38365.0,0.416091]
[1643699432970,0.07365942,38366.0,38365.0,0.350926]
[1643699433171,0.06517,38367.0,38365.0,0.350926]
[1643699433831,0.06517,38367.0,38364.0,0.2990751]
[1643699434235,0.06517,38367.0,38365.0,0.350926]
[1643699437037,0.06505168,38367.0,38365.0,0.350926]
[1643699441072,0.06505168,38367.0,38364.0,0.2990751]
[1643699441522,0.06505168,38367.0,38365.0,0.350926]
[1643699453970,0.00075168,38367.0,38365.0,0.350926]
[1643699456222,0.00075168,38367.0,38365.0,0.54790682]
[1643699456421,0.00075168,38367.0,38365.0,0.350926]
[1643699456620,0.00075168,38367.0,38365.0,0.54146232]
[1643699456822,0.00075168,38367.0,38365.0,0.350926]
[1643699457119,0.00075168,38367.0,38365.0,0.54682816]
[1643699457322,0.00075168,38367.0,38365.0,0.5422975]
[1643699457723,0.00075168,38367.0,38365.0,0.350926]
[1643699458125,0.00075168,38367.0,38366.0,0.19350011]
[1643699458332,0.00075168,38367.0,38364.0,0.3642391]
[1643699458725,0.00075168,38367.0,38365.0,0.350926]
[1643699458925,0.00075168,38367.0,38364.0,0.3642391]
[1643699460367,0.09709357,38365.0,38364.0,0.2990751]
[1643699460569,0.09709357,38365.0,38362.0,0.06517]
[1643699460769,0.065171,38364.0,38360.0,1.024034]
[1643699460972,0.065171,38364.0,38361.0,0.350926]
[1643699463373,0.065171,38364.0,38361.0,0.33480898]
[1643699466021,0.065171,38364.0,38362.0,0.065169]
[1643699466225,0.065171,38364.0,38363.0,0.55546001]
[1643699467223,0.065171,38364.0,38363.0,0.350926]
[1643699467469,0.065171,38364.0,38363.0,0.55323071]
[1643699469872,0.065171,38364.0,38363.0,0.54200671]
[1643699471223,0.065171,38364.0,38363.0,0.64200671]
[1643699471432,0.065171,38364.0,38363.0,0.69200671]
[1643699471617,0.065171,38364.0,38363.0,0.64200671]
[1643699472719,0.130342,38366.0,38363.0,0.69200671]
[1643699472919,0.130342,38366.0,38365.0,0.4]
[1643699473119,0.130342,38366.0,38365.0,1.00099826]
[1643699473318,0.08653293,38373.0,38365.0,1.10099826]
[1643699473518,0.195462,38374.0,38366.0,0.450967]
[1643699473720,0.195462,38374.0,38367.0,0.6107418]
[1643699473925,0.195462,38374.0,38369.0,0.065148]
[1643699474122,0.065152,38373.0,38370.0,0.79352063]
[1643699474321,0.065152,38373.0,38371.0,0.1]
[1643699474521,0.195462,38374.0,38372.0,0.350967]
[1643699474721,0.195462,38374.0,38373.0,0.30233658]
[1643699474971,0.190462,38374.0,38373.0,0.30233658]
[1643699475170,0.190462,38374.0,38373.0,0.65330358]
[1643699475971,0.190462,38374.0,38373.0,0.8558862]
[1643699478574,0.165462,38374.0,38373.0,0.8558862]
[1643699479627,0.165462,38374.0,38373.0,0.65330358]
[1643699481229,0.165462,38374.0,38373.0,0.345967]
[1643699481432,0.16496473,38374.0,38372.0,0.130284]
[1643699481836,0.16496473,38374.0,38370.0,0.065155]
[1643699482032,0.16496473,38374.0,38368.0,0.630306]
[1643699482236,0.11496473,38374.0,38369.0,0.350917]
[1643699482677,0.31277008,38373.0,38369.0,0.350917]
[1643699482977,0.31277208,38373.0,38368.0,0.5]
[1643699483176,0.065161,38373.0,38368.0,0.5]
[1643699483378,0.08782362,38369.0,38368.0,0.5]
[1643699483578,0.08782362,38369.0,38368.0,0.850917]
[1643699484382,0.08782362,38369.0,38368.0,0.350917]
[1643699484580,0.08782362,38369.0,38366.0,0.5]
[1643699484880,0.13782362,38369.0,38366.0,0.5]
[1643699485079,0.31031568,38368.0,38366.0,0.5]
[1643699485680,0.31031568,38368.0,38361.0,0.630328]
[1643699486258,0.37548368,38368.0,38363.0,0.02110757]
[1643699486939,0.37548368,38368.0,38361.0,0.630328]
[1643699487136,0.44065468,38368.0,38361.0,0.630328]
[1643699487336,0.065172,38367.0,38361.0,0.630328]
[1643699487536,0.115172,38367.0,38362.0,0.350917]
[1643699487936,0.130343,38366.0,38362.0,0.350917]
[1643699488638,0.130343,38366.0,38363.0,0.25324185]
[1643699488838,0.130343,38366.0,38364.0,0.350917]
[1643699489345,0.32584615,38379.0,38365.0,0.19866651]
[1643699489549,0.3248,38384.0,38366.0,0.403017]
[1643699489743,0.52369399,38385.0,38369.0,0.00100245]
[1643699489978,0.065157,38379.0,38370.0,0.0521]
[1643699490181,0.08453793,38375.0,38370.0,0.0521]
[1643699490377,0.08453793,38375.0,38371.0,0.350917]
[1643699490777,0.08453793,38375.0,38369.0,0.00100245]
[1643699490977,0.08453793,38375.0,38371.0,0.065149]
[1643699490978,0.14969493,38375.0,38371.0,0.065149]
[1643699491178,0.14969493,38375.0,38372.0,0.350917]
[1643699491378,0.14969493,38375.0,38370.0,0.130297]
[1643699491582,0.14969493,38375.0,38371.0,0.350917]
[1643699491976,0.14969493,38375.0,38371.0,0.54475496]
[1643699492378,0.14969493,38375.0,38373.0,0.065152]
[1643699495728,0.15067264,38375.0,38373.0,0.065152]
[1643699497032,0.15067264,38375.0,38374.0,0.350917]
[1643699497671,0.06613471,38375.0,38374.0,0.350917]
[1643699498170,0.06613471,38375.0,38373.0,0.065152]
[1643699500478,0.14235171,38375.0,38373.0,0.065152]
[1643699502433,0.14235171,38375.0,38374.0,0.19413513]
[1643699503331,0.14235171,38375.0,38374.0,0.54505213]
[1643699503530,0.06613471,38375.0,38374.0,0.54505213]
[1643699506776,0.06613471,38375.0,38374.0,0.19413513]
[1643699507177,0.06613471,38375.0,38374.0,0.54505213]
[1643699512577,0.06613471,38375.0,38374.0,0.350917]
[1643699512782,0.06613471,38375.0,38374.0,0.54159741]
[1643699513179,0.06602732,38375.0,38374.0,0.54159741]
[1643699515778,0.065157,38375.0,38374.0,0.54159741]
[1643699519135,0.065157,38375.0,38374.0,0.350917]
[1643699519637,0.065157,38375.0,38374.0,0.53897301]
[1643699520083,0.065157,38375.0,38374.0,0.350917]
[1643699520484,0.065157,38375.0,38373.0,0.19544472]
[1643699520682,0.065157,38375.0,38374.0,0.350917]
[1643699520882,0.065157,38375.0,38373.0,0.19544472]
[1643699521583,0.065157,38375.0,38374.0,0.350917]
[1643699525128,0.065157,38375.0,38374.0,0.85334726]
[1643699525928,0.5235,38385.0,38374.0,0.85334726]
[1643699525929,0.065141,38378.0,38374.0,0.85334726]
[1643699526132,0.018,38385.0,38377.0,0.40100224]
[1643699526334,0.0001,38385.0,38379.0,0.1]
[1643699526534,0.0001,38385.0,38383.0,0.4]
[1643699526731,0.0001,38385.0,38384.0,1.59520697]
[1643699527130,0.0001,38385.0,38384.0,1.82707002]
[1643699527333,0.00130097,38388.0,38384.0,2.02243217]
[1643699527605,0.133245,38394.0,38386.0,0.03774712]
[1643699527606,0.003,38394.0,38386.0,0.03774712]
[1643699527802,0.0001,38391.0,38390.0,0.4]
[1643699528002,0.0001,38391.0,38390.0,1.584467]
[1643699528208,0.003,38394.0,38390.0,1.684467]
[1643699528403,0.003,38394.0,38391.0,1.14004257]
[1643699528603,0.003,38394.0,38392.0,0.83351]
[1643699528804,0.003,38394.0,38392.0,1.184427]
[1643699530603,0.00323806,38393.0,38392.0,1.184427]
[1643699533642,0.06235406,38395.0,38392.0,1.184427]
[1643699533843,0.06235406,38395.0,38393.0,0.416034]
[1643699534043,0.06235406,38395.0,38393.0,0.64573661]
[1643699534242,0.06235406,38395.0,38393.0,0.83401241]
[1643699534441,0.06235406,38395.0,38393.0,0.64573661]
[1643699534643,0.06235406,38395.0,38394.0,0.20551712]
[1643699534843,0.06235406,38395.0,38394.0,0.55143412]
[1643699536776,0.06235406,38395.0,38394.0,0.55103412]
[1643699537178,0.06235406,38395.0,38394.0,0.350917]
[1643699538180,0.13895553,38395.0,38394.0,0.350917]
[1643699538381,3.04480354,38395.0,38394.0,0.350917]
[1643699538579,2.84817684,38395.0,38392.0,0.91164236]
[1643699538836,0.32296262,38394.0,38392.0,0.91164236]
[1643699539032,0.130257,38394.0,38392.0,0.91164236]
[1643699539234,0.39451709,38394.0,38392.0,0.91164236]
[1643699539434,0.5870977,38394.0,38393.0,0.350917]
[1643699539632,0.39451709,38394.0,38393.0,0.350917]
[1643699540633,0.38951709,38394.0,38393.0,0.350917]
[1643699541042,0.63586743,38394.0,38392.0,0.78141]
[1643699541236,0.56291692,38393.0,38392.0,0.78141]
[1643699541440,0.61501692,38393.0,38392.0,0.78141]
[1643699542036,0.61001692,38393.0,38392.0,0.78141]
[1643699543082,0.403017,38393.0,38392.0,0.78141]
[1643699543281,0.63391735,38393.0,38392.0,0.78141]
[1643699543782,0.63391735,38393.0,38379.0,0.52688647]
[1643699543984,0.63391735,38393.0,38388.0,0.02139698]
[1643699543985,0.065143,38390.0,38388.0,0.02139698]
[1643699544182,0.25918016,38389.0,38379.0,0.52688647]
[1643699544482,0.26877542,38387.0,38379.0,0.51187111]
[1643699544682,0.19261629,38386.0,38379.0,0.25407844]
[1643699544883,0.065144,38385.0,38379.0,0.13027844]
[1643699545283,0.09842744,38382.0,38375.0,0.501986]
[1643699545483,0.09842744,38382.0,38376.0,0.350917]
[1643699545682,0.26877542,38387.0,38376.0,0.350917]
[1643699545883,0.26877542,38387.0,38377.0,0.19648478]
[1643699546085,0.26877542,38387.0,38378.0,0.02016703]
[1643699546332,0.26877542,38387.0,38377.0,0.19648478]
[1643699546730,0.26877542,38387.0,38377.0,0.065146]
[1643699546932,0.065149,38381.0,38378.0,0.3025412]
[1643699547232,0.065149,38381.0,38379.0,0.350917]
[1643699548632,0.065149,38381.0,38377.0,0.13029468]
[1643699548835,0.065149,38381.0,38377.0,0.06514868]
[1643699549634,0.30189044,38381.0,38377.0,0.06514868]
[1643699549836,0.07403234,38380.0,38377.0,0.06514868]
[1643699550680,0.07403234,38380.0,38378.0,0.350917]
[1643699551284,0.28871401,38380.0,38377.0,0.06514868]
[1643699551483,0.07403234,38380.0,38375.0,0.5671375]
[1643699551686,0.07403234,38380.0,38376.0,0.350917]
[1643699551883,0.065149,38381.0,38376.0,0.350917]
[1643699552485,0.065149,38381.0,38378.0,0.35207279]
[1643699552686,0.065149,38381.0,38379.0,0.350917]
[1643699553834,0.065149,38381.0,38378.0,0.06514712]
[1643699555033,0.065149,38381.0,38379.0,0.350917]
[1643699555835,0.065149,38381.0,38379.0,0.54133668]
[1643699557477,0.065149,38381.0,38379.0,0.350917]
[1643699557675,0.065149,38381.0,38378.0,0.06514712]
[1643699559480,0.065149,38381.0,38379.0,0.350917]
[1643699561627,0.065149,38381.0,38378.0,0.06514712]
[1643699562427,0.0752118,38380.0,38378.0,0.06514712]
[1643699562627,0.065149,38381.0,38378.0,0.06514712]
[1643699562827,0.065149,38381.0,38379.0,0.350917]
[1643699563828,0.065149,38381.0,38378.0,0.06514712]
[1643699564130,0.06508805,38381.0,38378.0,0.06514712]
[1643699564975,0.06508805,38381.0,38378.0,0.25280105]
[1643699565775,0.01508805,38381.0,38378.0,0.25280105]
[1643699565976,0.01508805,38381.0,38378.0,0.06514712]
[1643699566479,0.01508805,38381.0,38378.0,0.0651487]
[1643699568577,0.01508805,38381.0,38379.0,0.350917]
[1643699569627,0.01508805,38381.0,38378.0,0.0651487]
[1643699572487,0.01508805,38381.0,38379.0,0.350917]
[1643699572683,0.01508805,38381.0,38380.0,0.2488171]
[1643699572883,0.01508805,38381.0,38380.0,0.5997341]
[1643699579033,0.01435584,38381.0,38380.0,0.5997341]
[1643699580682,0.01435584,38381.0,38380.0,0.350917]
[1643699581281,0.01435584,38381.0,38380.0,0.53936901]
[1643699582181,0.01435584,38381.0,38380.0,0.350917]
[1643699582382,0.01435584,38381.0,38380.0,0.53970389]
[1643699582885,0.01435584,38381.0,38380.0,0.350917]
[1643699585540,0.01435584,38381.0,38380.0,0.53754701]
[1643699586236,0.01435584,38381.0,38380.0,0.350917]
[1643699586839,0.01435584,38381.0,38380.0,0.54375578]
[1643699587683,0.01435584,38381.0,38380.0,0.350917]
[1643699589685,0.01406295,38381.0,38380.0,0.350917]
[1643699590486,0.0139953,38381.0,38380.0,0.350917]
[1643699591335,0.0139953,38381.0,38380.0,0.54111664]
[1643699593736,0.0139953,38381.0,38380.0,0.350917]
[1643699596783,0.0139953,38381.0,38380.0,0.35082117]
[1643699598590,0.0139953,38381.0,38380.0,0.40082117]
[1643699598837,0.0139953,38381.0,38380.0,0.50082117]
[1643699599037,0.0139953,38381.0,38380.0,0.35082117]
[1643699601244,0.0139953,38381.0,38380.0,0.51122123]
[1643699603888,0.0139953,38381.0,38380.0,0.35082117]
[1643699606737,0.0139953,38381.0,38380.0,0.40082117]
[1643699607538,0.0139953,38381.0,38380.0,0.58793901]
[1643699607737,0.0139953,38381.0,38380.0,0.55567988]
[1643699608138,0.0139953,38381.0,38380.0,0.53858065]
[1643699610784,0.0139953,38381.0,38380.0,0.58858065]
[1643699613389,0.0139953,38381.0,38380.0,0.68858065]
[1643699614445,0.0139953,38381.0,38380.0,0.58858065]
[1643699618088,0.01252684,38382.0,38380.0,0.65371765]
[1643699618290,0.01252684,38382.0,38381.0,0.5666227]
[1643699618589,0.01252684,38382.0,38381.0,0.77681464]